bitfinex/quotes_BTCUSD_20240703
["timestamp","ask_amount","ask_price","bid_price","bid_amount"]
[1719996831095,0.593606,60777.0,60776.0,0.58066306]
[1719996831289,0.593606,60777.0,60776.0,0.01686306]
[1719996831290,1.7411178,60777.0,60776.0,0.01686306]
[1719996831532,1.251748,60777.0,60776.0,0.01686306]
[1719996832332,0.822745,60772.0,60771.0,0.31559063]
[1719996832625,0.922745,60772.0,60771.0,0.3123]
[1719996833677,0.924745,60772.0,60771.0,0.3123]
[1719996834294,0.922745,60772.0,60771.0,0.3123]
[1719996835058,1.4121418,60772.0,60771.0,0.003]
[1719996835265,1.4121418,60772.0,60768.0,0.0121409]
[1719996835266,0.822787,60769.0,60768.0,0.0121409]
[1719996835468,0.1,60769.0,60768.0,0.0121409]
[1719996835747,0.04878203,60774.0,60771.0,0.06]
[1719996835960,0.164544,60774.0,60772.0,0.0235773]
[1719996836156,0.55410799,60788.0,60777.0,0.261]
[1719996836157,0.164528,60780.0,60777.0,0.261]
[1719996836385,0.164528,60780.0,60778.0,0.3268773]
[1719996836639,0.329028,60785.0,60779.0,0.023]
[1719996836861,0.329077,60777.0,60769.0,0.0235773]
[1719996837091,0.329077,60777.0,60768.0,0.5615409]
[1719996837092,0.164542,60775.0,60774.0,0.2695773]
[1719996837319,0.329039,60783.0,60775.0,0.3288]
[1719996837545,0.329054,60781.0,60775.0,0.3288]
[1719996837773,0.1,60780.0,60776.0,0.023]
[1719996838024,0.164531,60779.0,60776.0,0.08513773]
[1719996838257,0.1,60778.0,60776.0,0.08513773]
[1719996838481,0.1,60778.0,60776.0,0.10871503]
[1719996839068,0.164538,60776.0,60775.0,0.3288]
[1719996839229,0.1,60778.0,60768.0,0.0121409]
[1719996839230,0.493672,60769.0,60768.0,0.0121409]
[1719996839460,0.922787,60769.0,60768.0,0.0121409]
[1719996839936,0.922787,60769.0,60768.0,0.3026]
[1719996839937,1.251902,60769.0,60768.0,0.3026]
[1719996840195,0.82284,60765.0,60764.0,0.009218]
[1719996840426,0.92284,60765.0,60764.0,0.009218]
[1719996840896,0.97153439,60765.0,60764.0,0.009218]
[1719996841166,1.30067039,60765.0,60764.0,0.009218]
[1719996841444,1.91154575,60765.0,60764.0,0.009218]
[1719996841672,2.26503383,60765.0,60764.0,0.009218]
[1719996841906,1.28827993,60765.0,60764.0,0.009218]
[1719996842157,1.28827993,60765.0,60764.0,0.337218]
[1719996842158,1.05648094,60765.0,60764.0,0.337218]
[1719996842368,0.63200919,60765.0,60764.0,0.31488022]
[1719996842573,0.46544119,60765.0,60764.0,0.33845752]
[1719996842782,0.36544119,60765.0,60764.0,0.39386624]
[1719996843000,0.04866477,60766.0,60765.0,0.0235773]
[1719996843239,0.04866477,60768.0,60767.0,0.0235773]
[1719996843451,0.04866477,60770.0,60769.0,0.0235773]
[1719996843677,0.04866477,60770.0,60769.0,0.023]
[1719996843892,0.20179662,60775.0,60769.0,0.023]
[1719996843893,0.1216501,60777.0,60776.0,0.2811773]
[1719996844102,0.1216501,60778.0,60777.0,0.023]
[1719996844317,0.0364227,60788.0,60777.0,0.023]
[1719996844318,0.1216501,60783.0,60782.0,0.0235773]
[1719996844526,0.38887306,60783.0,60778.0,0.0235773]
[1719996844728,0.1216501,60786.0,60782.0,0.023]
[1719996844932,0.08015582,60785.0,60782.0,0.0235773]
[1719996845151,0.08015582,60785.0,60783.0,0.023]
[1719996845411,0.08015582,60785.0,60783.0,0.3413]
[1719996845412,0.164516,60784.0,60783.0,0.3413]
[1719996845634,0.164507,60788.0,60784.0,0.03717177]
[1719996845846,0.08015582,60784.0,60783.0,0.3648773]
[1719996846049,0.22534591,60784.0,60783.0,0.3413]
[1719996846218,0.81888395,60784.0,60783.0,0.3413]
[1719996846543,1.39150171,60784.0,60783.0,0.3413]
[1719996846682,0.73343571,60784.0,60783.0,0.3183]
[1719996846882,0.56891971,60784.0,60783.0,0.3183]
[1719996847083,1.06246871,60784.0,60783.0,0.3183]
[1719996847290,1.51322516,60784.0,60783.0,0.3183]
[1719996847527,1.84225816,60784.0,60783.0,0.3183]
[1719996847730,1.72053471,60784.0,60783.0,0.3183]
[1719996847925,0.164535,60777.0,60776.0,0.2576]
[1719996848091,0.164535,60777.0,60776.0,0.2806]
[1719996848092,0.18799068,60777.0,60776.0,0.2806]
[1719996848293,0.51689309,60777.0,60776.0,0.2806]
[1719996848503,0.51689309,60777.0,60776.0,0.5981]
[1719996849398,0.88221998,60777.0,60776.0,0.5981]
[1719996849598,0.88221998,60777.0,60776.0,0.5751]
[1719996849802,0.88221998,60777.0,60776.0,0.5781]
[1719996850000,1.54036198,60777.0,60776.0,0.5781]
[1719996850201,1.33299206,60777.0,60776.0,0.003]
[1719996850444,0.329077,60776.0,60771.0,0.3501285]
[1719996850648,0.28625784,60772.0,60771.0,0.331]
[1719996850850,0.67487182,60772.0,60771.0,0.331]
[1719996851025,0.88226098,60772.0,60771.0,0.331]
[1719996851427,0.88226098,60772.0,60760.0,0.009207]
[1719996851428,0.164579,60761.0,60760.0,0.009207]
[1719996851672,0.493737,60761.0,60760.0,0.09884975]
[1719996851847,0.493737,60761.0,60760.0,0.0283355]
[1719996851848,0.55324487,60761.0,60760.0,0.0283355]
[1719996852057,0.55324487,60761.0,60760.0,0.5820355]
[1719996852437,0.38866587,60761.0,60760.0,0.7820355]
[1719996852839,0.38966587,60761.0,60760.0,0.568907]
[1719996853048,0.38966587,60761.0,60760.0,0.64639243]
[1719996853049,1.02946524,60761.0,60760.0,0.64639243]
[1719996853268,1.72514142,60761.0,60760.0,0.58368644]
[1719996853683,1.72514142,60761.0,60760.0,0.02998644]
[1719996853892,0.493777,60756.0,60755.0,0.009207]
[1719996854060,1.4168503,60756.0,60755.0,0.009207]
[1719996854276,1.82320842,60756.0,60755.0,0.02390637]
[1719996854483,2.55412539,60756.0,60755.0,0.02390637]
[1719996854683,2.22494039,60756.0,60755.0,0.02390637]
[1719996854954,2.22496706,60756.0,60755.0,0.02390637]
[1719996855148,1.89578206,60756.0,60755.0,0.02390637]
[1719996855355,1.97089508,60756.0,60755.0,0.32680637]
[1719996855493,1.73119006,60756.0,60755.0,0.36252166]
[1719996855695,1.73119006,60756.0,60755.0,0.36695079]
[1719996855904,1.63119006,60756.0,60755.0,0.36695079]
[1719996856113,1.63119006,60756.0,60755.0,1.27174459]
[1719996856334,0.1,60766.0,60765.0,0.0191285]
[1719996856532,0.164551,60772.0,60765.0,0.0191285]
[1719996856533,0.164554,60771.0,60770.0,0.0191285]
[1719996856767,0.164554,60771.0,60765.0,0.31381285]
[1719996856768,0.164557,60769.0,60768.0,0.0191285]
[1719996857168,0.6761346,60769.0,60768.0,0.0191285]
[1719996857375,0.164557,60769.0,60768.0,0.0191285]
[1719996857578,0.164557,60769.0,60768.0,0.0527517]
[1719996857836,0.329099,60772.0,60768.0,0.0527517]
[1719996857837,0.172552,60771.0,60770.0,0.0191285]
[1719996858054,0.329113,60770.0,60768.0,0.0336232]
[1719996858258,1.00521262,60769.0,60768.0,0.0336232]
[1719996858456,1.00521262,60769.0,60765.0,0.31381285]
[1719996858457,0.94065926,60769.0,60765.0,0.31381285]
[1719996858767,0.94065926,60769.0,60764.0,0.0191285]
[1719996858768,0.08015582,60766.0,60764.0,0.0191285]
[1719996858893,0.08015582,60766.0,60765.0,0.0191285]
[1719996859093,0.164568,60765.0,60764.0,0.0191285]
[1719996859297,0.264568,60765.0,60764.0,0.0421285]
[1719996859500,0.264568,60765.0,60764.0,0.07834135]
[1719996859501,1.10525249,60765.0,60764.0,0.07834135]
[1719996859700,1.10525249,60765.0,60764.0,0.0191285]
[1719996859701,1.43438849,60765.0,60764.0,0.0191285]
[1719996859903,1.43438849,60765.0,60761.0,0.32]
[1719996859904,0.164576,60762.0,60761.0,0.32]
[1719996860110,0.164576,60762.0,60761.0,0.3621285]
[1719996860111,0.493729,60762.0,60761.0,0.3621285]
[1719996860388,1.66358349,60762.0,60761.0,0.32]
[1719996860596,2.09273649,60762.0,60761.0,0.32]
[1719996860794,2.09273649,60762.0,60755.0,0.04357672]
[1719996860795,0.164592,60756.0,60755.0,0.04357672]
[1719996860999,0.822962,60756.0,60755.0,0.11495647]
[1719996861168,1.66375151,60756.0,60755.0,0.11495647]
[1719996861374,2.23388256,60756.0,60755.0,0.009207]
[1719996861533,1.99293651,60756.0,60755.0,0.009207]
[1719996861740,2.94309692,60756.0,60755.0,0.009207]
[1719996861944,3.04309692,60756.0,60755.0,0.009207]
[1719996862335,3.27739692,60756.0,60755.0,0.009207]
[1719996862658,1.481404,60753.0,60752.0,0.009218]
[1719996862987,2.09300851,60753.0,60752.0,0.009218]
[1719996863379,3.04316892,60753.0,60752.0,0.009218]
[1719996864165,2.53156441,60753.0,60752.0,0.009218]
[1719996864373,3.77423075,60753.0,60752.0,0.009218]
[1719996865162,3.81510225,60753.0,60752.0,0.009218]
[1719996865362,3.77423075,60753.0,60752.0,0.009218]
[1719996866625,0.82318,60740.0,60739.0,0.0033355]
[1719996866829,2.06584634,60740.0,60739.0,0.05062905]
[1719996867045,2.06584634,60740.0,60730.0,0.783907]
[1719996867046,0.164657,60732.0,60731.0,0.202]
[1719996867265,0.164657,60732.0,60731.0,0.17736497]
[1719996867266,0.493972,60732.0,60731.0,0.17736497]
[1719996867462,2.95249351,60732.0,60731.0,0.17736497]
[1719996867614,3.28180851,60732.0,60731.0,0.17736497]
[1719996867824,2.95249351,60732.0,60731.0,0.17736497]
[1719996868039,2.3575546,60732.0,60731.0,0.30349217]
[1719996868232,2.6868696,60732.0,60731.0,0.32649217]
[1719996868453,3.85643743,60732.0,60731.0,0.32649217]
[1719996868652,4.18575243,60732.0,60731.0,0.01706617]
[1719996868899,4.18575243,60732.0,60731.0,0.002]
[1719996869019,4.28575243,60732.0,60731.0,0.002]
[1719996869227,4.9288933,60732.0,60731.0,0.002]
[1719996869656,5.2420758,60732.0,60731.0,0.002]
[1719996870082,1.152623,60731.0,60730.0,0.00732223]
[1719996870236,5.25258992,60731.0,60730.0,0.00732223]
[1719996870441,5.33237784,60731.0,60730.0,0.00732223]
[1719996870679,7.30613583,60731.0,60730.0,0.00732223]
[1719996870936,6.45715028,60731.0,60730.0,0.00732223]
[1719996871138,6.75480736,60731.0,60730.0,0.00732223]
[1719996871341,6.91510616,60731.0,60730.0,0.00732223]
[1719996871541,7.28079211,60731.0,60730.0,0.00732223]
[1719996871697,8.49602564,60731.0,60730.0,0.00732223]
[1719996871916,8.22266241,60731.0,60730.0,0.00732223]
[1719996872115,6.1186574,60731.0,60730.0,0.00732223]
[1719996872341,6.11833226,60731.0,60730.0,0.00732223]
[1719996872541,6.4416662,60731.0,60730.0,0.00732223]
[1719996872700,6.4316662,60731.0,60730.0,0.00732223]
[1719996873316,3.84236346,60731.0,60725.0,0.255]
[1719996873521,4.15756749,60730.0,60726.0,0.08136]
[1719996873740,4.15756749,60730.0,60720.0,0.01616387]
[1719996873741,0.164687,60721.0,60720.0,0.01616387]
[1719996873995,5.78411732,60721.0,60720.0,0.000819]
[1719996874282,3.99292449,60721.0,60720.0,0.000819]
[1719996874556,4.32229949,60721.0,60720.0,0.03377259]
[1719996874743,3.82823749,60721.0,60720.0,0.5009178]
[1719996875726,3.82823749,60721.0,60720.0,0.000819]
[1719996875727,4.65167449,60721.0,60720.0,0.000819]
[1719996876016,3.82823749,60721.0,60720.0,0.0032933]
[1719996876241,4.15761449,60721.0,60713.0,0.3]
[1719996876394,3.99292749,60720.0,60714.0,0.4821988]
[1719996876591,0.329369,60723.0,60718.0,0.6]
[1719996876592,3.72823749,60719.0,60718.0,0.6]
[1719996876793,5.19008244,60719.0,60718.0,1.2821988]
[1719996877033,3.72826461,60719.0,60718.0,1.5631988]
[1719996877199,3.72826461,60719.0,60718.0,2.05295286]
[1719996877404,3.72826461,60719.0,60718.0,2.21764786]
[1719996877608,3.71788621,60719.0,60718.0,2.21764786]
[1719996877789,3.5618768,60719.0,60718.0,2.54703886]
[1719996877986,3.45342068,60719.0,60718.0,2.54703886]
[1719996878606,2.55869678,60719.0,60718.0,2.54703886]
[1719996878805,2.55869678,60719.0,60718.0,2.57999886]
[1719996879217,1.02950788,60719.0,60718.0,2.35709886]
[1719996879448,0.26467173,60722.0,60721.0,1.294062]
[1719996879621,0.08015582,60737.0,60721.0,1.294062]
[1719996879622,0.08015582,60737.0,60736.0,0.6]
[1719996879825,0.74560667,60742.0,60741.0,0.3]
[1719996880036,0.08015582,60744.0,60742.0,0.6]
[1719996880037,0.26467173,60743.0,60742.0,0.6]
[1719996880247,0.36890784,60754.0,60749.0,0.3]
[1719996880248,0.34482755,60754.0,60749.0,0.3]
[1719996880403,0.08015582,60754.0,60750.0,0.1602988]
[1719996880600,0.24068193,60752.0,60751.0,0.09902988]
[1719996880846,0.08015582,60754.0,60751.0,0.25932868]
[1719996880847,0.24068193,60753.0,60751.0,0.25932868]
[1719996881036,0.24068193,60753.0,60752.0,0.1602988]
[1719996881254,0.08015582,60754.0,60752.0,0.1832988]
[1719996881488,0.24068376,60753.0,60752.0,0.05990299]
[1719996881866,0.08015582,60754.0,60752.0,0.05990299]
[1719996881867,0.49143758,60754.0,60752.0,0.05990299]
[1719996882014,0.32683958,60754.0,60752.0,0.05990299]
[1719996882226,0.25075482,60754.0,60752.0,0.05990299]
[1719996882391,0.25075482,60754.0,60753.0,0.1602988]
[1719996882595,0.25075482,60754.0,60753.0,0.23231898]
[1719996883223,0.08615582,60754.0,60753.0,0.23231898]
[1719996883622,0.08615582,60754.0,60753.0,0.25531898]
[1719996884043,0.08615582,60754.0,60753.0,0.85531898]
[1719996884252,0.08015582,60754.0,60753.0,0.85531898]
[1719996885414,0.08215582,60754.0,60753.0,0.85531898]
[1719996886181,0.08515582,60754.0,60753.0,0.85531898]
[1719996886800,0.08599582,60754.0,60753.0,0.85531898]
[1719996888658,0.25115628,60754.0,60753.0,0.85531898]
[1719996888851,0.35115628,60754.0,60753.0,0.85531898]
[1719996889075,0.25115628,60754.0,60753.0,1.05531898]
[1719996889245,0.08599582,60754.0,60753.0,1.05531898]
[1719996890344,0.59756374,60754.0,60753.0,1.05531898]
[1719996890971,0.23284701,60754.0,60753.0,1.05531898]
[1719996891179,0.23284701,60754.0,60728.0,0.01979764]
[1719996891180,0.5652,60745.0,60728.0,0.01979764]
[1719996891378,0.5652,60745.0,60721.0,0.2]
[1719996891379,0.164673,60727.0,60721.0,0.2]
[1719996891535,0.164673,60727.0,60718.0,0.48185894]
[1719996891536,0.07342346,60727.0,60726.0,0.3]
[1719996891733,0.12237244,60728.0,60727.0,0.2]
[1719996891945,0.14684693,60728.0,60727.0,0.2]
[1719996892206,0.67643041,60732.0,60726.0,0.6]
[1719996892534,0.51177341,60731.0,60727.0,0.2]
[1719996892740,0.164657,60732.0,60727.0,0.2]
[1719996892961,0.14686042,60728.0,60727.0,0.2]
[1719996893170,0.08015582,60729.0,60727.0,0.2]
[1719996893375,0.51178315,60728.0,60727.0,0.2]
[1719996893753,0.51178315,60728.0,60726.0,0.49416653]
[1719996894077,0.08015582,60729.0,60727.0,0.2202988]
[1719996894255,0.51178659,60728.0,60727.0,0.2202988]
[1719996894409,0.36556185,60728.0,60727.0,0.2202988]
[1719996894646,0.87734844,60728.0,60727.0,0.5202988]
[1719996894890,0.51328254,60728.0,60727.0,0.71446533]
[1719996895090,0.36638521,60728.0,60727.0,0.71446533]
[1719996895268,0.36638521,60728.0,60727.0,0.73746533]
[1719996895649,0.36638521,60728.0,60727.0,1.03746533]
[1719996895854,0.36635192,60728.0,60727.0,1.03746533]
[1719996896277,0.87812335,60728.0,60727.0,1.03746533]
[1719996896665,0.87812335,60728.0,60727.0,0.73746533]
[1719996896872,0.87812335,60728.0,60727.0,1.03746533]
[1719996897977,1.02510134,60728.0,60727.0,1.03746533]
[1719996898174,0.51332991,60728.0,60727.0,1.03746533]
[1719996898576,0.36635192,60728.0,60727.0,1.03746533]
[1719996898988,0.00082336,60728.0,60727.0,0.73746533]
[1719996899190,0.00082336,60728.0,60727.0,0.43746533]
[1719996899191,0.86038224,60728.0,60727.0,0.43746533]
[1719996899499,1.37215768,60728.0,60727.0,0.43746533]
[1719996899704,1.37215768,60728.0,60727.0,0.1832988]
[1719996899916,1.60705768,60728.0,60727.0,0.1832988]
[1719996900108,1.60705768,60728.0,60720.0,0.3]
[1719996900109,0.329359,60724.0,60723.0,0.19416653]
[1719996900309,0.53023288,60724.0,60723.0,0.35446533]
[1719996900740,1.04200832,60724.0,60723.0,0.35446533]
[1719996900973,1.04200832,60724.0,60723.0,0.42000426]
[1719996901541,0.87832932,60724.0,60723.0,0.42000426]
[1719996901743,0.87832932,60724.0,60723.0,1.02000426]
[1719996901944,0.48908139,60724.0,60723.0,1.02000426]
[1719996902211,0.36656265,60724.0,60723.0,1.04300426]
[1719996902837,0.46458726,60724.0,60723.0,1.04300426]
[1719996903430,0.36556265,60724.0,60723.0,1.04300426]
[1719996903632,0.12253054,60725.0,60723.0,1.04300426]
[1719996903633,0.12253054,60725.0,60724.0,0.79416653]
[1719996903837,0.12253054,60725.0,60724.0,1.12260136]
[1719996904385,0.00082336,60727.0,60726.0,0.79416653]
[1719996904584,0.00082336,60727.0,60726.0,0.97746533]
[1719996905416,0.12260107,60733.0,60732.0,1.09416653]
[1719996905592,0.12260107,60735.0,60734.0,0.79416653]
[1719996905790,0.14709879,60741.0,60734.0,0.79416653]
[1719996905791,0.09809355,60741.0,60740.0,0.79416653]
[1719996905998,0.09809355,60743.0,60742.0,0.6]
[1719996906200,0.09809355,60743.0,60742.0,0.7832988]
[1719996906425,0.48806387,60743.0,60742.0,0.7832988]
[1719996906629,0.46357478,60743.0,60742.0,0.97746533]
[1719996906983,0.3654628,60743.0,60742.0,0.97746533]
[1719996907183,0.09811198,60744.0,60743.0,0.79416653]
[1719996907448,0.09811198,60747.0,60746.0,0.79416653]
[1719996907692,0.00084,60754.0,60752.0,0.3]
[1719996907892,0.3654142,60753.0,60752.0,0.1602988]
[1719996908183,0.5300142,60753.0,60752.0,0.1832988]
[1719996908890,0.3654142,60753.0,60752.0,0.1832988]
[1719996910473,0.6946152,60753.0,60752.0,0.1832988]
[1719996910636,0.6946152,60753.0,60752.0,0.023]
[1719996910637,0.8592152,60753.0,60752.0,0.023]
[1719996910843,0.49381,60752.0,60751.0,0.023]
[1719996911047,0.93941735,60752.0,60751.0,0.1832988]
[1719996911357,0.164622,60745.0,60744.0,0.19416653]
[1719996911541,0.164622,60745.0,60744.0,0.14482851]
[1719996911542,0.08015582,60745.0,60744.0,0.14482851]
[1719996911742,0.17820038,60745.0,60744.0,0.16782851]
[1719996912024,0.08015582,60745.0,60744.0,0.16782851]
[1719996912392,0.24477782,60745.0,60744.0,0.16782851]
[1719996912595,0.70828617,60745.0,60744.0,0.16782851]
[1719996912797,0.54366417,60745.0,60744.0,0.17282851]
[1719996912973,0.46350835,60745.0,60744.0,0.17282851]
[1719996913159,0.09804456,60746.0,60744.0,0.17282851]
[1719996913355,0.59190256,60746.0,60745.0,0.023]
[1719996913562,0.95736418,60746.0,60745.0,0.1832988]
[1719996913859,1.31112974,60746.0,60745.0,0.1832988]
[1719996914059,0.85932847,60746.0,60745.0,0.1832988]
[1719996914864,0.95737686,60746.0,60745.0,0.1832988]
[1719996915271,0.85932847,60746.0,60745.0,0.1832988]
[1719996915896,0.36547047,60746.0,60744.0,0.004]
[1719996916109,0.70830206,60745.0,60744.0,0.004]
[1719996916298,0.77487129,60745.0,60734.0,0.3]
[1719996916519,0.21368037,60737.0,60735.0,0.1602988]
[1719996916720,0.23819805,60737.0,60735.0,0.1602988]
[1719996916921,0.07355305,60737.0,60735.0,0.1602988]
[1719996917299,0.04903379,60736.0,60735.0,0.1602988]
[1719996917480,0.07355068,60737.0,60735.0,0.1602988]
[1719996917674,0.07355068,60737.0,60736.0,0.023]
[1719996917890,0.07355068,60737.0,60736.0,0.1832988]
[1719996918098,0.26270858,60738.0,60736.0,0.1832988]
[1719996918099,0.09806758,60738.0,60736.0,0.1832988]
[1719996918259,0.04907154,60741.0,60737.0,0.7602988]
[1719996918464,0.07360732,60743.0,60740.0,0.3]
[1719996918676,0.04907154,60744.0,60741.0,0.1832988]
[1719996918677,0.07360732,60742.0,60741.0,0.1832988]
[1719996918930,0.07360732,60742.0,60741.0,0.4832988]
[1719996919101,0.07360732,60742.0,60741.0,0.7832988]
[1719996919304,0.0490721,60743.0,60742.0,0.3]
[1719996919513,0.0490721,60743.0,60742.0,0.4832988]
[1719996920065,0.07360732,60743.0,60742.0,0.7832988]
[1719996920269,0.07360732,60743.0,60742.0,0.4832988]
[1719996920493,0.0981788,60744.0,60743.0,0.3]
[1719996920691,0.0981788,60744.0,60743.0,0.4832988]
[1719996920892,0.12572358,60746.0,60745.0,0.3]
[1719996921128,0.49119448,60746.0,60745.0,0.4832988]
[1719996921331,0.3684709,60746.0,60745.0,0.4832988]
[1719996921533,0.49122994,60746.0,60745.0,0.4832988]
[1719996921702,0.3684709,60746.0,60745.0,0.4832988]
[1719996921909,0.49123096,60746.0,60745.0,0.4832988]
[1719996922109,0.3684709,60746.0,60745.0,0.4832988]
[1719996922322,0.49123096,60746.0,60745.0,0.4832988]
[1719996922726,0.49123096,60746.0,60745.0,0.7832988]
[1719996922971,0.49123096,60746.0,60745.0,0.4832988]
[1719996923115,0.3654709,60746.0,60745.0,0.4832988]
[1719996923588,0.36546947,60746.0,60745.0,0.4832988]
[1719996923954,0.36546947,60749.0,60745.0,0.4832988]
[1719996924158,0.1,60748.0,60746.0,0.1832988]
[1719996924355,0.36546947,60747.0,60746.0,0.1832988]
[1719996924593,0.46546947,60747.0,60746.0,0.1832988]
[1719996925452,0.48833308,60747.0,60746.0,0.7832988]
[1719996925597,0.12286361,60747.0,60746.0,0.7832988]
[1719996925800,0.46376216,60747.0,60746.0,0.7832988]
[1719996925981,0.09829269,60747.0,60746.0,0.7832988]
[1719996926184,0.12286361,60748.0,60747.0,0.3]
[1719996926383,0.12286361,60748.0,60747.0,0.1832988]
[1719996926730,0.08015582,60752.0,60747.0,0.4602988]
[1719996926939,0.36544788,60751.0,60748.0,0.1602988]
[1719996928132,0.36544788,60751.0,60750.0,0.3]
[1719996928331,0.46544788,60751.0,60750.0,0.7602988]
[1719996928545,0.46544788,60751.0,60750.0,0.4602988]
[1719996928546,0.2228647,60751.0,60750.0,0.4602988]
[1719996928772,0.2228647,60751.0,60750.0,0.4832988]
[1719996928773,0.58831258,60751.0,60750.0,0.4832988]
[1719996930086,0.58829103,60751.0,60750.0,0.4832988]
[1719996930286,0.58829103,60751.0,60750.0,0.4882988]
[1719996931068,0.46543091,60751.0,60750.0,0.4882988]
[1719996931502,0.17371495,60751.0,60750.0,0.7882988]
[1719996931633,0.07371495,60751.0,60750.0,0.7882988]
[1719996931833,0.04914486,60751.0,60750.0,0.7882988]
[1719996932034,0.09912258,60754.0,60752.0,0.6]
[1719996932035,0.04914486,60753.0,60752.0,0.6]
[1719996932235,0.07455495,60754.0,60752.0,0.6]
[1719996932236,0.04998486,60754.0,60753.0,0.6]
[1719996932590,0.04998486,60754.0,60753.0,0.7602988]
[1719996932591,0.00084,60754.0,60753.0,0.7602988]
[1719996932792,0.00084,60754.0,60753.0,0.7832988]
[1719996934051,0.00184,60754.0,60753.0,0.7922988]
[1719996935440,0.00184,60754.0,60753.0,0.8032988]
[1719996935596,0.00084,60754.0,60753.0,0.7942988]
[1719996935794,0.02933136,60764.0,60758.0,0.3]
[1719996935992,0.2497,60765.0,60759.0,0.4832988]
[1719996936215,0.28215308,60764.0,60760.0,0.3]
[1719996936421,0.28215308,60764.0,60761.0,0.1832988]
[1719996938165,0.18015582,60766.0,60761.0,0.1832988]
[1719996938370,0.2854231,60765.0,60761.0,0.1832988]
[1719996938582,0.18015582,60766.0,60761.0,0.1832988]
[1719996938793,0.27541034,60765.0,60761.0,0.1832988]
[1719996939358,0.27541034,60765.0,60761.0,0.1862988]
[1719996940392,0.27541034,60765.0,60761.0,0.1832988]
[1719996940795,0.27541034,60765.0,60761.0,0.20205722]
[1719996940975,0.27541034,60765.0,60761.0,0.20805722]
[1719996941197,0.27541034,60765.0,60761.0,0.20305722]
[1719996942120,0.27541034,60765.0,60761.0,0.20805722]
[1719996942324,0.18015582,60766.0,60761.0,0.20805722]
[1719996942661,0.26510818,60765.0,60761.0,0.20805722]
[1719996942900,0.08015582,60766.0,60761.0,0.20805722]
[1719996943099,0.26511819,60765.0,60761.0,0.20805722]
[1719996943454,0.26511819,60764.0,60761.0,0.20705722]
[1719996943675,0.20286622,60766.0,60761.0,0.20705722]
[1719996943867,0.36077512,60765.0,60761.0,0.20705722]
[1719996944064,0.09917679,60766.0,60763.0,0.3]
[1719996944225,0.001,60766.0,60764.0,0.1832988]
[1719996944437,0.09817679,60767.0,60764.0,0.1832988]
[1719996944655,0.08015582,60766.0,60764.0,0.1832988]
[1719996944864,0.15379304,60766.0,60764.0,0.1832988]
[1719996946067,0.28389566,60765.0,60761.0,0.01875842]
[1719996946296,0.04909566,60762.0,60761.0,0.1602988]
[1719996946523,0.2348,60765.0,60761.0,0.1602988]
[1719996946727,0.04909342,60762.0,60761.0,0.1602988]
[1719996947886,0.07364014,60763.0,60761.0,0.1602988]
[1719996948658,0.001,60762.0,60761.0,0.1712988]
[1719996948910,0.001,60762.0,60761.0,0.1802988]
[1719996949112,0.399369,60765.0,60761.0,0.1692988]
[1719996949353,0.07369727,60763.0,60761.0,0.1692988]
[1719996949545,0.07469727,60763.0,60761.0,0.1782988]
[1719996949759,0.89722627,60762.0,60761.0,0.018]
[1719996949929,1.11185942,60762.0,60761.0,0.018]
[1719996950143,1.34274939,60762.0,60761.0,0.018]
[1719996950339,1.58564939,60762.0,60761.0,0.009]
[1719996950680,1.58564939,60762.0,60761.0,0.022]
[1719996951333,1.58564939,60762.0,60761.0,0.013]
[1719996951334,1.25649639,60762.0,60761.0,0.013]
[1719996951736,0.164581,60760.0,60759.0,0.01935287]
[1719996951941,0.164586,60759.0,60753.0,0.3]
[1719996952137,0.04911708,60755.0,60754.0,0.1832988]
[1719996952359,0.164586,60759.0,60754.0,0.1832988]
[1719996952552,0.04912302,60755.0,60754.0,0.1832988]
[1719996952855,0.04912302,60756.0,60754.0,0.1832988]
[1719996953056,0.04912302,60755.0,60754.0,0.1832988]
[1719996953374,0.04912302,60756.0,60754.0,0.1832988]
[1719996953957,0.04912302,60756.0,60755.0,0.3]
[1719996954106,0.04912302,60758.0,60757.0,0.3]
[1719996954460,0.04912302,60758.0,60757.0,0.4832988]
[1719996954461,0.07368453,60758.0,60757.0,0.4832988]
[1719996955017,0.07368453,60759.0,60757.0,0.4832988]
[1719996955226,0.07368453,60759.0,60758.0,0.48658987]
[1719996955424,0.07368453,60759.0,60758.0,0.4832988]
[1719996955425,0.08391252,60759.0,60758.0,0.4832988]
[1719996955745,0.57442799,60759.0,60758.0,0.023]
[1719996955862,0.57442799,60759.0,60754.0,0.003924]
[1719996955863,1.705168,60755.0,60754.0,0.003924]
[1719996956247,1.705168,60755.0,60739.0,0.3]
[1719996956248,0.164629,60743.0,60739.0,0.3]
[1719996956458,0.07367514,60741.0,60740.0,0.1602988]
[1719996956660,0.04912186,60744.0,60743.0,0.3]
[1719996956950,0.09823352,60747.0,60745.0,0.3]
[1719996957152,0.09823352,60747.0,60746.0,0.1602988]
[1719996957286,0.26284752,60748.0,60746.0,0.1602988]
[1719996957690,0.09823352,60748.0,60747.0,0.023]
[1719996957918,0.07368522,60748.0,60747.0,0.4865905]
[1719996958076,0.07368522,60748.0,60747.0,0.4832988]
[1719996958377,0.04912579,60748.0,60747.0,0.4832988]
[1719996958575,0.07370486,60750.0,60748.0,0.3]
[1719996958781,0.07370486,60750.0,60749.0,0.1832988]
[1719996958982,0.07370486,60751.0,60750.0,0.3]
[1719996959188,0.07370486,60752.0,60751.0,0.3]
[1719996959406,0.07370486,60752.0,60751.0,0.4832988]
[1719996959617,0.04914195,60752.0,60751.0,0.4832988]
[1719996960050,0.04914195,60752.0,60751.0,0.1832988]
[1719996960435,0.45202343,60757.0,60752.0,0.45178948]
[1719996960436,0.04914195,60757.0,60752.0,0.45178948]
[1719996960637,0.04914195,60757.0,60753.0,0.1832988]
[1719996960820,0.164587,60758.0,60753.0,0.1832988]
[1719996960821,0.04914195,60756.0,60753.0,0.1832988]
[1719996961229,0.04914357,60756.0,60753.0,0.4832988]
[1719996961440,0.04914357,60757.0,60753.0,0.1832988]
[1719996961850,0.04915129,60756.0,60753.0,0.1832988]
[1719996962302,0.23831394,60758.0,60753.0,0.1832988]
[1719996962303,0.04915129,60757.0,60753.0,0.1832988]
[1719996962482,0.08015582,60756.0,60753.0,0.1832988]
[1719996962711,0.164597,60755.0,60753.0,0.1832988]
[1719996962930,0.04915129,60754.0,60753.0,0.1832988]
[1719996963132,0.82299,60754.0,60753.0,0.1832988]
[1719996963281,0.89671694,60754.0,60753.0,0.1832988]
[1719996963484,0.94058895,60754.0,60753.0,0.1832988]
[1719996963687,0.94058895,60754.0,60749.0,0.008]
[1719996963688,0.493827,60750.0,60749.0,0.008]